[Event "ESTCC 65 2019"]
[Site "Mali Losinj"]
[Date "2019.09.22"]
[Round "5.26"]
[White "Karppinen, Martti"]
[Black "Olesen, Poul Erik Norgaard"]
[Result "1/2-1/2"]
[ECO "A49"]
[WhiteElo "1925"]
[BlackElo "1996"]
[Annotator "NA"]
[PlyCount "96"]
[EventDate "2019.09.18"]
[EventType "team-tourn"]
[EventCountry "CRO"]
[SourceTitle "playchess.com"]
[Source "ChessBase"]
[SourceQuality "1"]
[WhiteTeam "Finland"]
[BlackTeam "Denmark"]
[WhiteTeamCountry "FIN"]
[BlackTeamCountry "DEN"]
[TimeControl "40/5400+30:1800+30"]

1. d4 {[%emt 0:00:30]} g6 {[%emt 0:00:30]} 2. g3 {[%emt 0:01:30]} Bg7 {[%emt 0:00:00]} 3. Bg2 {[%emt 0:00:30]} Nf6 {[%emt 0:00:00]} 4. Nf3 {[%emt 0:03:30]} d6 {[%emt 0:00:30]} 5. O-O {[%emt 0:01:30]} c6 {[%emt 0:00:30]} 6. c3 {[%emt 0:02:30]} O-O {[%emt 0:01:30]} 7. a4 {[%emt 0:02:30]} Qc7 {[%emt 0:03:30]} 8. Na3 {[%emt 0:04:30]} e5 {[%emt 0:03:30]} 9. Bg5 {[%emt 0:05:30]} h6 {[%emt 0:02:30]} 10. Bxf6 {[%emt 0:02:30]} Bxf6 {[%emt 0:00:30]} 11. Qc1 {[%emt 0:07:30]} Bg7 {[%emt 0:00:30]} 12. dxe5 {[%emt 0:01:30]} dxe5 {[%emt 0:00:30]} 13. e4 {[%emt 0:03:30]} Be6 {[%emt 0:09:30]} 14. Nc2 {[%emt 0:04:30]} Nd7 {[%emt 0:02:30]} 15. Qe3 {[%emt 0:06:30]} a5 {[%emt 0:02:30]} 16. Rfd1 {[%emt 0:05:30]} Bb3 {[%emt 0:04:30]} 17. Rdc1 {[%emt 0:08:30]} Nb6 {[%emt 0:04:30]} 18. Bf1 {[%emt 0:04:30]} Bxa4 {[%emt 0:10:30]} 19. Na3 {[%emt 0:04:30]} Bb3 {[%emt 0:02:30]} 20. c4 {[%emt 0:01:30]} a4 {[%emt 0:00:30]} 21. Nd2 {[%emt 0:01:30]} Rfd8 {[%emt 0:01:30]} 22. Nxb3 {[%emt 0:03:30]} axb3 {[%emt 0:00:30]} 23. Qxb3 {[%emt 0:02:30]} Na4 {[%emt 0:02:30]} 24. Nc2 {[%emt 0:01:34]} Nc5 {[%emt 0:03:30]} 25. Qe3 {[%emt 0:01:45]} Rxa1 {[%emt 0:01:30]} 26. Rxa1 {[%emt 0:00:29]} Ne6 {[%emt 0:00:30]} 27. Kg2 {[%emt 0:03:52]} Nd4 {[%emt 0:02:30]} 28. Nxd4 {[%emt 0:05:40]} exd4 {[%emt 0:00:30]} 29. Qd2 {[%emt 0:01:39]} c5 {[%emt 0:02:30]} 30. Bd3 {[%emt 0:01:06]} b6 {[%emt 0:06:30]} 31. Qd1 {[%emt 0:02:40]} b5 {[%emt 0:07:30]} 32. b3 {[%emt 0:02:48]} bxc4 {[%emt 0:01:30]} 33. bxc4 {[%emt 0:00:30]} Qc6 {[%emt 0:00:30]} 34. Qf3 {[%emt 0:00:54]} Ra8 {[%emt 0:04:30]} 35. Rxa8+ {[%emt 0:00:38]} Qxa8 {[%emt 0:00:00]} 36. h4 {[%emt 0:00:32]} h5 {[%emt 0:02:55]} 37. Bc2 {[%emt 0:02:09]} Qa5 {[%emt 0:04:02]} 38. Bd3 {[%emt 0:00:24]} Qc3 {[%emt 0:02:52]} 39. Qe2 {[%emt 0:00:47]} Bh6 {[%emt 0:02:05]} 40. e5 {[%emt 0:00:35]} Qd2 {[%emt 0:02:11]} 41. e6 {[%emt 0:31:26]} Qxe2 {[%emt 0:32:23]} 42. exf7+ {[%emt 0:00:30]} Kxf7 {[%emt 0:00:18]} 43. Bxe2 {[%emt 0:00:05]} Kf6 {[%emt 0:00:00]} 44. f4 {[%emt 0:00:00]} Bf8 {[%emt 0:00:00]} 45. Kf3 {[%emt 0:00:00]} Bd6 {[%emt 0:00:00]} 46. Bd3 {[%emt 0:00:00]} Bf8 {[%emt 0:00:00]} 47. Bf1 {[%emt 0:00:00]} Bd6 {[%emt 0:00:00]} 48. Ke4 {[%emt 0:00:00]} Bf8 {[%emt 0:00:00]} 1/2-1/2

[Event "ESTCC 65 2019"]
[Site "Mali Losinj"]
[Date "2019.09.22"]
[Round "5.27"]
[White "Jorgensen, Arne Bjorn"]
[Black "Virtanen, Esko"]
[Result "1/2-1/2"]
[ECO "D02"]
[WhiteElo "1996"]
[BlackElo "1771"]
[Annotator "NA"]
[PlyCount "190"]
[EventDate "2019.09.18"]
[EventType "team-tourn"]
[EventCountry "CRO"]
[SourceTitle "playchess.com"]
[Source "ChessBase"]
[SourceQuality "1"]
[WhiteTeam "Denmark"]
[BlackTeam "Finland"]
[WhiteTeamCountry "DEN"]
[BlackTeamCountry "FIN"]
[TimeControl "40/5400+30:1800+30"]

1. d4 {[%emt 0:00:30]} d5 {[%emt 0:00:30]} 2. c4 {[%emt 0:00:00]} c6 {[%emt 0:00:00]} 3. Nc3 {[%emt 0:00:00]} Nf6 {[%emt 0:00:00]} 4. Nf3 {[%emt 0:00:30]} Bf5 {[%emt 0:00:30]} 5. Bf4 {[%emt 0:01:30]} e6 {[%emt 0:00:30]} 6. e3 {[%emt 0:00:30]} Nh5 {[%emt 0:04:30]} 7. Bg5 {[%emt 0:05:30]} Be7 {[%emt 0:01:30]} 8. Bxe7 {[%emt 0:01:30]} Qxe7 {[%emt 0:00:30]} 9. Be2 {[%emt 0:02:30]} Nf6 {[%emt 0:02:30]} 10. a3 {[%emt 0:01:30]} h6 {[%emt 0:00:30]} 11. Rc1 {[%emt 0:01:30]} O-O {[%emt 0:00:30]} 12. O-O {[%emt 0:00:00]} dxc4 {[%emt 0:01:30]} 13. Bxc4 {[%emt 0:00:00]} c5 {[%emt 0:02:30]} 14. Qe2 {[%emt 0:08:30]} cxd4 {[%emt 0:01:30]} 15. Nxd4 {[%emt 0:00:30]} Bg6 {[%emt 0:01:30]} 16. Rfd1 {[%emt 0:06:30]} Nbd7 {[%emt 0:00:30]} 17. e4 {[%emt 0:07:30]} Ne5 {[%emt 0:10:30]} 18. Ba2 {[%emt 0:02:30]} Rac8 {[%emt 0:00:30]} 19. h3 {[%emt 0:03:30]} Rfd8 {[%emt 0:00:30]} 20. g4 {[%emt 0:17:30]} Nc6 {[%emt 0:02:30]} 21. Nxc6 {[%emt 0:02:30]} Rxc6 {[%emt 0:00:30]} 22. Rxd8+ {[%emt 0:00:30]} Qxd8 {[%emt 0:00:00]} 23. Rd1 {[%emt 0:00:30]} Qe7 {[%emt 0:07:00]} 24. e5 {[%emt 0:06:30]} Nd7 {[%emt 0:02:30]} 25. Qe3 {[%emt 0:00:30]} a6 {[%emt 0:01:30]} 26. Qd4 {[%emt 0:04:30]} Nf8 {[%emt 0:03:30]} 27. Qd8 {[%emt 0:04:30]} Qxd8 {[%emt 0:26:30]} 28. Rxd8 {[%emt 0:00:00]} b5 {[%emt 0:00:00]} 29. f4 {[%emt 0:03:00]} f5 {[%emt 0:03:00]} 30. exf6 {[%emt 0:02:38]} gxf6 {[%emt 0:00:00]} 31. Kf2 {[%emt 0:01:57]} f5 {[%emt 0:01:00]} 32. Ke3 {[%emt 0:01:03]} fxg4 {[%emt 0:01:30]} 33. hxg4 {[%emt 0:00:34]} h5 {[%emt 0:00:00]} 34. gxh5 {[%emt 0:00:56]} Bxh5 {[%emt 0:00:00]} 35. Nd5 {[%emt 0:06:16]} Kg7 {[%emt 0:01:30]} 36. Nc3 {[%emt 0:00:56]} Bg4 {[%emt 0:00:30]} 37. Rd2 {[%emt 0:02:48]} Bf5 {[%emt 0:01:30]} 38. Ne4 {[%emt 0:00:59]} Bh3 {[%emt 0:05:30]} 39. Bb1 {[%emt 0:00:38]} Bf5 {[%emt 0:00:30]} 40. Bd3 {[%emt 0:00:40]} Kf7 {[%emt 0:00:30]} 41. Be2 {[%emt 0:31:53]} Ke7 {[%emt 0:30:30]} 42. Bf3 {[%emt 0:00:21]} Rb6 {[%emt 0:00:30]} 43. b4 {[%emt 0:01:23]} Ng6 {[%emt 0:00:30]} 44. Nc5 {[%emt 0:01:31]} e5 {[%emt 0:00:00]} 45. fxe5 {[%emt 0:00:00]} Nxe5 {[%emt 0:00:00]} 46. Kf4 {[%emt 0:00:00]} Nxf3 {[%emt 0:00:00]} 47. Kxf3 {[%emt 0:00:00]} Rh6 {[%emt 0:00:00]} 48. Kf4 {[%emt 0:00:00]} Bc8 {[%emt 0:00:00]} 49. Re2+ {[%emt 0:00:00]} Kd8 {[%emt 0:00:00]} 50. Re3 {[%emt 0:00:00]} Kc7 {[%emt 0:00:00]} 51. Rg3 {[%emt 0:00:00]} Kb6 {[%emt 0:00:00]} 52. Nb3 {[%emt 0:00:00]} Rh4+ {[%emt 0:00:00]} 53. Ke5 {[%emt 0:00:00]} Rh5+ {[%emt 0:00:00]} 54. Kd4 {[%emt 0:00:00]} Rh4+ {[%emt 0:00:00]} 55. Kc3 {[%emt 0:00:00]} Rh3 {[%emt 0:00:00]} 56. Rxh3 {[%emt 0:00:00]} Bxh3 {[%emt 0:00:00]} 57. Kd4 {[%emt 0:00:00]} Be6 {[%emt 0:00:00]} 58. Nc5 {[%emt 0:00:00]} Bg4 {[%emt 0:00:00]} 59. Ke5 {[%emt 0:00:17]} a5 {[%emt 0:00:00]} 60. Kd6 {[%emt 0:00:32]} axb4 {[%emt 0:00:00]} 61. axb4 {[%emt 0:00:08]} Be2 {[%emt 0:00:00]} 62. Nd7+ {[%emt 0:00:33]} Kb7 {[%emt 0:00:00]} 63. Kc5 {[%emt 0:00:28]} Bf1 {[%emt 0:00:00]} 64. Nb6 {[%emt 0:00:47]} Be2 {[%emt 0:00:00]} 65. Nd5 {[%emt 0:00:18]} Bc4 {[%emt 0:00:00]} 66. Nc3 {[%emt 0:01:00]} Ka6 {[%emt 0:00:00]} 67. Kc6 {[%emt 0:00:55]} Bf1 {[%emt 0:00:00]} 68. Kc7 {[%emt 0:00:40]} Bg2 {[%emt 0:00:00]} 69. Ne2 {[%emt 0:00:46]} Be4 {[%emt 0:00:00]} 70. Nd4 {[%emt 0:00:19]} Bd5 {[%emt 0:00:00]} 71. Kd6 {[%emt 0:00:38]} Bg2 {[%emt 0:00:00]} 72. Kc5 {[%emt 0:00:10]} Bf1 {[%emt 0:00:00]} 73. Ne6 {[%emt 0:00:18]} Kb7 {[%emt 0:00:00]} 74. Nf4 {[%emt 0:02:04]} Bc4 {[%emt 0:00:00]} 75. Ng6 {[%emt 0:01:05]} Bf1 {[%emt 0:00:00]} 76. Ne7 {[%emt 0:00:18]} Bc4 {[%emt 0:00:00]} 77. Nc6 {[%emt 0:01:03]} Bf1 {[%emt 0:00:00]} 78. Nd4 {[%emt 0:02:47]} Ka6 {[%emt 0:00:00]} 79. Kc6 {[%emt 0:01:03]} Bg2+ {[%emt 0:00:00]} 80. Kc7 {[%emt 0:00:13]} Be4 {[%emt 0:00:00]} 81. Ne6 {[%emt 0:00:27]} Bg2 {[%emt 0:00:00]} 82. Nd8 {[%emt 0:01:06]} Bd5 {[%emt 0:00:00]} 83. Nc6 {[%emt 0:01:10]} Bg2 {[%emt 0:00:00]} 84. Nb8+ {[%emt 0:01:11]} Ka7 {[%emt 0:00:00]} 85. Nd7 {[%emt 0:00:18]} Ka6 {[%emt 0:00:00]} 86. Kd6 {[%emt 0:00:27]} Bf1 {[%emt 0:00:00]} 87. Kc5 {[%emt 0:00:35]} Be2 {[%emt 0:00:00]} 88. Nb8+ {[%emt 0:00:22]} Kb7 {[%emt 0:00:00]} 89. Nd7 {[%emt 0:00:29]} Ka6 {[%emt 0:00:00]} 90. Nf8 {[%emt 0:00:17]} Bg4 {[%emt 0:00:00]} 91. Ng6 {[%emt 0:00:14]} Be2 {[%emt 0:00:00]} 92. Ne7 {[%emt 0:00:12]} Bf1 {[%emt 0:00:00]} 93. Nd5 {[%emt 0:00:10]} Kb7 {[%emt 0:00:00]} 94. Nc3 {[%emt 0:00:22]} Ka6 {[%emt 0:00:00]} 95. Nxb5 {[%emt 0:00:13]} Bxb5 {[%emt 0:00:00]} 1/2-1/2

[Event "ESTCC 65 2019"]
[Site "Mali Losinj"]
[Date "2019.09.22"]
[Round "5.28"]
[White "Ristoja, Aulikki"]
[Black "Andersson, Finn"]
[Result "0-1"]
[ECO "A45"]
[WhiteElo "1558"]
[BlackElo "1771"]
[Annotator "NA"]
[PlyCount "119"]
[EventDate "2019.09.18"]
[EventType "team-tourn"]
[EventCountry "CRO"]
[SourceTitle "playchess.com"]
[Source "ChessBase"]
[SourceQuality "1"]
[WhiteTeam "Finland"]
[BlackTeam "Denmark"]
[WhiteTeamCountry "FIN"]
[BlackTeamCountry "DEN"]
[TimeControl "40/5400+30:1800+30"]

1. d4 {[%emt 0:00:30]} Nf6 {[%emt 0:00:30]} 2. Bf4 {[%emt 0:00:00]} d6 {[%emt 0:02:30]} 3. e3 {[%emt 0:00:00]} Bf5 {[%emt 0:01:30]} 4. c4 {[%emt 0:01:30]} Nbd7 {[%emt 0:00:30]} 5. Nc3 {[%emt 0:02:30]} e5 {[%emt 0:02:30]} 6. Bg3 {[%emt 0:03:30]} c6 {[%emt 0:03:30]} 7. Nf3 {[%emt 0:05:30]} Qc7 {[%emt 0:08:30]} 8. Be2 {[%emt 0:06:30]} Be7 {[%emt 0:06:30]} 9. h3 {[%emt 0:02:30]} h6 {[%emt 0:01:30]} 10. a3 {[%emt 0:03:30]} O-O {[%emt 0:07:30]} 11. O-O {[%emt 0:00:30]} Rfe8 {[%emt 0:04:30]} 12. Rc1 {[%emt 0:01:30]} e4 {[%emt 0:04:30]} 13. Nd2 {[%emt 0:01:30]} Bf8 {[%emt 0:00:30]} 14. b4 {[%emt 0:01:30]} Qd8 {[%emt 0:04:30]} 15. Nb3 {[%emt 0:03:30]} b6 {[%emt 0:05:30]} 16. Bh2 {[%emt 0:05:30]} Rc8 {[%emt 0:06:30]} 17. Qd2 {[%emt 0:02:30]} Qe7 {[%emt 0:02:30]} 18. Rfd1 {[%emt 0:04:30]} a6 {[%emt 0:04:30]} 19. d5 {[%emt 0:04:30]} c5 {[%emt 0:00:30]} 20. bxc5 {[%emt 0:01:30]} bxc5 {[%emt 0:00:30]} 21. Na5 {[%emt 0:02:30]} Nh7 {[%emt 0:03:30]} 22. Nc6 {[%emt 0:01:30]} Qg5 {[%emt 0:01:30]} 23. Bf4 {[%emt 0:01:30]} Qf6 {[%emt 0:00:30]} 24. Bf1 {[%emt 0:06:30]} g5 {[%emt 0:00:30]} 25. Bh2 {[%emt 0:00:30]} g4 {[%emt 0:01:30]} 26. hxg4 {[%emt 0:00:30]} Bxg4 {[%emt 0:00:30]} 27. Be2 {[%emt 0:01:30]} Qg6 {[%emt 0:02:30]} 28. Kh1 {[%emt 0:02:30]} Qh5 {[%emt 0:03:30]} 29. Bxg4 {[%emt 0:07:30]} Qxg4 {[%emt 0:00:00]} 30. Qe2 {[%emt 0:03:30]} Qh4 {[%emt 0:02:00]} 31. f3 {[%emt 0:03:30]} Nhf6 {[%emt 0:02:44]} 32. Rg1 {[%emt 0:04:20]} Kh8 {[%emt 0:04:39]} 33. Qe1 {[%emt 0:04:20]} Qg5 {[%emt 0:02:44]} 34. f4 {[%emt 0:03:43]} Qg4 {[%emt 0:03:58]} 35. Qg3 {[%emt 0:01:31]} h5 {[%emt 0:02:27]} 36. Rce1 {[%emt 0:02:36]} Bg7 {[%emt 0:02:31]} 37. Nd1 {[%emt 0:01:26]} Nb8 {[%emt 0:01:28]} 38. Na5 {[%emt 0:01:30]} Rg8 {[%emt 0:00:35]} 39. Nb7 {[%emt 0:02:04]} Qd7 {[%emt 0:00:37]} 40. Na5 {[%emt 0:00:32]} Bf8 {[%emt 0:01:36]} 41. Qh3 {[%emt 0:30:04]} Qg4 {[%emt 0:31:14]} 42. Nf2 {[%emt 0:00:00]} Qxh3 {[%emt 0:00:00]} 43. gxh3 {[%emt 0:00:00]} Be7 {[%emt 0:00:00]} 44. f5 {[%emt 0:00:00]} Rge8 {[%emt 0:00:00]} 45. Nb7 {[%emt 0:00:00]} Nbd7 {[%emt 0:00:00]} 46. Nxd6 {[%emt 0:00:00]} Bxd6 {[%emt 0:00:00]} 47. Bxd6 {[%emt 0:00:00]} Ne5 {[%emt 0:00:00]} 48. Rc1 {[%emt 0:00:00]} Nf3 {[%emt 0:00:00]} 49. Rg2 {[%emt 0:00:00]} Nh7 {[%emt 0:00:00]} 50. Bf4 {[%emt 0:00:00]} Nh4 {[%emt 0:00:00]} 51. d6 {[%emt 0:00:00]} Nxg2 {[%emt 0:00:00]} 52. Kxg2 {[%emt 0:00:00]} Nf6 {[%emt 0:00:00]} 53. Rb1 {[%emt 0:00:00]} Rb8 {[%emt 0:01:04]} 54. Rd1 {[%emt 0:01:51]} Nd7 {[%emt 0:00:22]} 55. Kg3 {[%emt 0:04:03]} Rb2 {[%emt 0:01:03]} 56. Rc1 {[%emt 0:02:53]} a5 {[%emt 0:00:49]} 57. Nd1 {[%emt 0:01:30]} Rg8+ {[%emt 0:00:50]} 58. Bg5 {[%emt 0:01:26]} Rxg5+ {[%emt 0:01:12]} 59. Kf4 {[%emt 0:00:06]} Rbg2 {[%emt 0:00:01]} 60. Kxe4 {[%emt 0:01:35]} 0-1

[Event "ESTCC 65 2019"]
[Site "Mali Losinj"]
[Date "2019.09.22"]
[Round "5.29"]
[White "Vadlja, Stjepan"]
[Black "Grahn, Lars"]
[Result "0-1"]
[ECO "A85"]
[WhiteElo "1636"]
[BlackElo "2024"]
[Annotator "NA"]
[PlyCount "130"]
[EventDate "2019.09.18"]
[EventType "team-tourn"]
[EventCountry "CRO"]
[SourceTitle "playchess.com"]
[Source "ChessBase"]
[SourceQuality "1"]
[WhiteTeam "Croatia"]
[BlackTeam "Sweden"]
[WhiteTeamCountry "CRO"]
[BlackTeamCountry "SWE"]
[TimeControl "40/5400+30:1800+30"]

1. d4 {[%emt 0:00:30]} f5 {[%emt 0:00:30]} 2. c4 {[%emt 0:00:30]} Nf6 {[%emt 0:00:00]} 3. Nc3 {[%emt 0:00:00]} g6 {[%emt 0:00:00]} 4. Nf3 {[%emt 0:00:00]} Bg7 {[%emt 0:00:00]} 5. Qc2 {[%emt 0:01:30]} d6 {[%emt 0:02:00]} 6. Bg5 {[%emt 0:00:30]} O-O {[%emt 0:00:30]} 7. e3 {[%emt 0:00:30]} c6 {[%emt 0:03:30]} 8. Be2 {[%emt 0:00:30]} Qc7 {[%emt 0:01:30]} 9. Rc1 {[%emt 0:00:30]} h6 {[%emt 0:03:30]} 10. Bxf6 {[%emt 0:01:30]} Bxf6 {[%emt 0:00:30]} 11. d5 {[%emt 0:01:30]} c5 {[%emt 0:05:30]} 12. O-O {[%emt 0:02:30]} Nd7 {[%emt 0:03:30]} 13. Nd2 {[%emt 0:01:30]} Ne5 {[%emt 0:07:30]} 14. Nf3 {[%emt 0:04:30]} Bd7 {[%emt 0:02:30]} 15. Ne1 {[%emt 0:00:30]} Kg7 {[%emt 0:02:30]} 16. Nd3 {[%emt 0:00:00]} Nxc4 {[%emt 0:03:30]} 17. Nf4 {[%emt 0:00:00]} Nb6 {[%emt 0:05:30]} 18. Nb5 {[%emt 0:02:30]} Qc8 {[%emt 0:04:30]} 19. Ne6+ {[%emt 0:00:30]} Bxe6 {[%emt 0:00:30]} 20. dxe6 {[%emt 0:00:30]} a6 {[%emt 0:00:30]} 21. Nc3 {[%emt 0:00:30]} Qxe6 {[%emt 0:00:30]} 22. b3 {[%emt 0:00:00]} Qe5 {[%emt 0:02:30]} 23. Nd1 {[%emt 0:00:00]} Rac8 {[%emt 0:01:30]} 24. Bf3 {[%emt 0:00:30]} d5 {[%emt 0:01:30]} 25. Qd2 {[%emt 0:00:00]} Qd6 {[%emt 0:03:30]} 26. Nc3 {[%emt 0:00:00]} e6 {[%emt 0:04:30]} 27. g3 {[%emt 0:00:30]} c4 {[%emt 0:02:30]} 28. Ne2 {[%emt 0:00:30]} cxb3 {[%emt 0:02:30]} 29. axb3 {[%emt 0:00:30]} Rxc1 {[%emt 0:02:30]} 30. Rxc1 {[%emt 0:00:30]} Rc8 {[%emt 0:00:30]} 31. Rd1 {[%emt 0:00:30]} g5 {[%emt 0:04:30]} 32. g4 {[%emt 0:01:30]} fxg4 {[%emt 0:08:30]} 33. Bxg4 {[%emt 0:00:00]} Nd7 {[%emt 0:01:30]} 34. Ng3 {[%emt 0:00:00]} Ne5 {[%emt 0:02:51]} 35. Be2 {[%emt 0:00:30]} Qc5 {[%emt 0:01:49]} 36. Kg2 {[%emt 0:00:30]} Qc3 {[%emt 0:01:40]} 37. Qa2 {[%emt 0:00:30]} Nc6 {[%emt 0:04:09]} 38. Qb1 {[%emt 0:00:30]} Ne7 {[%emt 0:04:02]} 39. Bg4 {[%emt 0:01:30]} Rc6 {[%emt 0:03:35]} 40. Nh5+ {[%emt 0:01:30]} Kh8 {[%emt 0:01:13]} 41. Rd3 {[%emt 0:33:30]} Qa1 {[%emt 0:33:55]} 42. Qxa1 {[%emt 0:01:30]} Bxa1 {[%emt 0:00:12]} 43. f4 {[%emt 0:00:00]} Ng6 {[%emt 0:00:00]} 44. Rd1 {[%emt 0:00:00]} Bb2 {[%emt 0:00:00]} 45. Rd2 {[%emt 0:00:00]} Bc1 {[%emt 0:00:00]} 46. Rd3 {[%emt 0:00:00]} gxf4 {[%emt 0:00:00]} 47. exf4 {[%emt 0:00:00]} Nxf4+ {[%emt 0:00:00]} 48. Nxf4 {[%emt 0:00:00]} Bxf4 {[%emt 0:00:00]} 49. h3 {[%emt 0:00:00]} Kg7 {[%emt 0:00:00]} 50. Kf3 {[%emt 0:00:00]} Bg5 {[%emt 0:00:00]} 51. Bh5 {[%emt 0:00:00]} Kf6 {[%emt 0:00:00]} 52. Be8 {[%emt 0:00:00]} Rc1 {[%emt 0:00:00]} 53. Kg4 {[%emt 0:00:00]} Ke5 {[%emt 0:00:00]} 54. Rf3 {[%emt 0:00:00]} Rg1+ {[%emt 0:00:00]} 55. Kh5 {[%emt 0:00:00]} Bf4 {[%emt 0:00:00]} 56. Bd7 {[%emt 0:00:00]} Ke4 {[%emt 0:00:00]} 57. Rxf4+ {[%emt 0:00:00]} Kxf4 {[%emt 0:00:00]} 58. Bxe6 {[%emt 0:00:00]} d4 {[%emt 0:00:00]} 59. Bc4 {[%emt 0:00:00]} Rg3 {[%emt 0:00:54]} 60. h4 {[%emt 0:00:00]} d3 {[%emt 0:00:28]} 61. Kxh6 {[%emt 0:00:00]} d2 {[%emt 0:00:28]} 62. Be2 {[%emt 0:00:00]} Rg1 {[%emt 0:00:50]} 63. h5 {[%emt 0:00:00]} d1=Q {[%emt 0:00:19]} 64. Bxd1 {[%emt 0:00:00]} Rxd1 {[%emt 0:00:07]} 65. Kg6 {[%emt 0:00:00]} Rb1 {[%emt 0:01:02]} 0-1

[Event "ESTCC 65 2019"]
[Site "Mali Losinj"]
[Date "2019.09.22"]
[Round "5.31"]
[White "Novak, Stjepan"]
[Black "Bernhardsson, Sten"]
[Result "0-1"]
[ECO "B40"]
[WhiteElo "1503"]
[BlackElo "1956"]
[Annotator "NA"]
[PlyCount "26"]
[EventDate "2019.09.18"]
[EventType "team-tourn"]
[EventCountry "CRO"]
[SourceTitle "playchess.com"]
[Source "ChessBase"]
[SourceQuality "1"]
[WhiteTeam "Croatia"]
[BlackTeam "Sweden"]
[WhiteTeamCountry "CRO"]
[BlackTeamCountry "SWE"]
[TimeControl "40/5400+30:1800+30"]

1. e4 {[%emt 0:00:30]} c5 {[%emt 0:00:30]} 2. Nf3 {[%emt 0:00:30]} e6 {[%emt 0:00:00]} 3. Be2 {[%emt 0:00:30]} Nc6 {[%emt 0:00:00]} 4. b3 {[%emt 0:00:30]} d6 {[%emt 0:02:30]} 5. Bb5 {[%emt 0:01:30]} Bd7 {[%emt 0:02:30]} 6. O-O {[%emt 0:01:30]} Nf6 {[%emt 0:00:30]} 7. Bxc6 {[%emt 0:00:30]} Bxc6 {[%emt 0:00:30]} 8. e5 {[%emt 0:00:30]} dxe5 {[%emt 0:11:30]} 9. Nxe5 {[%emt 0:00:30]} Qd4 {[%emt 0:00:30]} 10. Nxc6 {[%emt 0:01:30]} Qxa1 {[%emt 0:01:30]} 11. Qf3 {[%emt 0:01:30]} Qxb1 {[%emt 0:03:30]} 12. d4 {[%emt 0:01:30]} Qxc2 {[%emt 0:00:30]} 13. Ne5 {[%emt 0:05:30]} Qe4 {[%emt 0:00:30]} 0-1

[Event "ESTCC 65 2019"]
[Site "Mali Losinj"]
[Date "2019.09.22"]
[Round "5.32"]
[White "Nordenstrom, Sven"]
[Black "Petanjek, Zvonko"]
[Result "1-0"]
[ECO "D02"]
[WhiteElo "1874"]
[BlackElo "1650"]
[Annotator "NA"]
[PlyCount "33"]
[EventDate "2019.09.18"]
[EventType "team-tourn"]
[EventCountry "CRO"]
[SourceTitle "playchess.com"]
[Source "ChessBase"]
[SourceQuality "1"]
[WhiteTeam "Sweden"]
[BlackTeam "Croatia"]
[WhiteTeamCountry "SWE"]
[BlackTeamCountry "CRO"]
[TimeControl "40/5400+30:1800+30"]

1. Nf3 {[%emt 0:00:30]} Nc6 {[%emt 0:00:30]} 2. d4 {[%emt 0:00:30]} d5 {[%emt 0:00:30]} 3. Bf4 {[%emt 0:00:30]} Nf6 {[%emt 0:00:30]} 4. e3 {[%emt 0:00:30]} a6 {[%emt 0:00:30]} 5. h3 {[%emt 0:01:30]} h6 {[%emt 0:00:00]} 6. c3 {[%emt 0:01:30]} Bf5 {[%emt 0:00:00]} 7. Bd3 {[%emt 0:00:30]} Be4 {[%emt 0:00:30]} 8. Qe2 {[%emt 0:00:30]} b5 {[%emt 0:00:30]} 9. O-O {[%emt 0:01:30]} e6 {[%emt 0:00:30]} 10. a4 {[%emt 0:04:30]} b4 {[%emt 0:04:30]} 11. Bxa6 {[%emt 0:00:30]} Bxf3 {[%emt 0:00:30]} 12. gxf3 {[%emt 0:00:30]} Nb8 {[%emt 0:01:30]} 13. Bd3 {[%emt 0:00:30]} Bd6 {[%emt 0:02:30]} 14. Bg3 {[%emt 0:00:30]} Qd7 {[%emt 0:02:30]} 15. Kg2 {[%emt 0:03:30]} Rxa4 {[%emt 0:00:30]} 16. Rxa4 {[%emt 0:00:00]} Qxa4 {[%emt 0:00:30]} 17. Bb5+ {[%emt 0:00:00]} 1-0

[Event "ESTCC 65 2019"]
[Site "Mali Losinj"]
[Date "2019.09.23"]
[Round "6.1"]
[White "Balashov, Yuri S"]
[Black "Beilfuss, Wilfried"]
[Result "1-0"]
[ECO "B85"]
[WhiteElo "2466"]
[BlackElo "2192"]
[Annotator "ChessBase"]
[PlyCount "43"]
[EventDate "2019.09.18"]
[EventType "team-tourn"]
[EventCountry "CRO"]
[SourceTitle "playchess.com"]
[Source "ChessBase"]
[SourceQuality "1"]
[WhiteTeam "Russia"]
[BlackTeam "Germany"]
[WhiteTeamCountry "RUS"]
[BlackTeamCountry "GER"]
[TimeControl "40/5400+30:1800+30"]

1. e4 {[%emt 0:00:30]} c5 {[%emt 0:00:30]} 2. Nf3 {[%emt 0:00:00]} Nc6 {[%emt 0:00:30]} 3. Nc3 {[%emt 0:00:00]} e6 {[%emt 0:00:30]} 4. d4 {[%emt 0:00:30]} cxd4 {[%emt 0:00:00]} 5. Nxd4 {[%emt 0:00:30]} Qc7 {[%emt 0:00:00]} 6. Be3 {[%emt 0:00:30]} a6 {[%emt 0:00:30]} 7. a3 {[%emt 0:02:30]} Nf6 {[%emt 0:00:30]} 8. Be2 {[%emt 0:09:30]} Be7 {[%emt 0:00:30]} 9. f4 {[%emt 0:00:30]} d6 {[%emt 0:00:30]} 10. O-O {[%emt 0:00:30]} O-O {[%emt 0:01:30]} 11. Kh1 {[%emt 0:00:30]} Bd7 {[%emt 0:09:30]} 12. Qe1 {[%emt 0:01:30]} Rac8 {[%emt 0:03:30]} 13. Qg3 {[%emt 0:04:30]} Kh8 {[%emt 0:05:30]} 14. Bd3 {[%emt 0:10:30]} e5 {[%emt 0:04:30]} 15. fxe5 {[%emt 0:02:30]} Nxe5 {[%emt 0:04:30]} 16. Nf5 {[%emt 0:00:30]} Bxf5 {[%emt 0:01:30]} 17. Rxf5 {[%emt 0:00:30]} g6 {[%emt 0:05:30]} 18. Rxf6 {[%emt 0:04:30]} Bxf6 {[%emt 0:00:30]} 19. Nd5 {[%emt 0:00:30]} Qd8 {[%emt 0:00:30]} 20. Bb6 {[%emt 0:00:30]} Qd7 {[%emt 0:12:30]} 21. Nxf6 {[%emt 0:00:30]} Qe6 {[%emt 0:00:30]} 22. Rf1 {[%emt 0:01:30]} 1-0